bitfinex/quotes_ETHUSD_20241120
["timestamp","ask_amount","ask_price","bid_price","bid_amount"]
[1732071074013,0.7553,3092.5,3090.8,4.20683293]
[1732071074222,0.08085247,3092.4,3090.9,3.78577339]
[1732071074440,0.7553,3092.4,3091.0,0.46204056]
[1732071074736,0.7553,3092.2,3090.9,0.39377339]
[1732071075251,0.7553,3092.2,3091.0,0.06523049]
[1732071075546,0.7553,3092.0,3091.0,0.06523049]
[1732071076407,0.7553,3092.0,3091.1,0.34590039]
[1732071076802,0.7553,3092.0,3091.1,1.50177378]
[1732071077043,0.7553,3092.0,3091.3,0.55]
[1732071077366,0.7553,3093.2,3091.4,3.80734604]
[1732071077541,0.7553,3093.2,3091.5,0.7749346]
[1732071077852,0.7553,3093.2,3091.7,0.7621]
[1732071078398,0.7553,3093.2,3091.5,3.7749346]
[1732071078399,0.7553,3093.2,3091.8,0.06523049]
[1732071078551,0.83613985,3093.2,3091.8,0.06523049]
[1732071078710,0.83613985,3093.2,3091.5,3.7749346]
[1732071078910,0.83613985,3093.2,3091.9,0.06523049]
[1732071079152,0.83613985,3093.2,3091.3,3.3225]
[1732071079322,0.83613985,3093.2,3092.0,0.06523049]
[1732071079522,0.83613985,3093.2,3091.3,3.0969291]
[1732071079847,0.7553,3093.2,3092.1,0.06523049]
[1732071080050,0.7553,3093.2,3091.3,3.49070249]
[1732071080282,0.01,3092.8,3090.9,0.3225]
[1732071080564,0.7553,3092.7,3090.9,0.3225]
[1732071080935,0.7553,3092.7,3091.1,3.392]
[1732071081064,0.7553,3092.7,3091.3,0.3225]
[1732071081288,0.7553,3092.5,3091.3,0.3225]
[1732071081428,0.7553,3092.5,3091.4,0.06086682]
[1732071081663,0.7553,3092.5,3091.7,3.0]
[1732071081829,0.7553,3092.5,3091.6,3.0]
[1732071082031,0.7553,3092.5,3091.3,0.3225]
[1732071082232,0.7553,3092.3,3091.6,3.0]
[1732071082668,0.7553,3092.3,3091.7,0.06086682]
[1732071082927,0.7553,3092.3,3091.3,0.3225]
[1732071083127,0.7553,3092.3,3091.8,0.06086682]
[1732071083439,0.7553,3092.2,3091.0,0.3225]
[1732071083684,0.7553,3092.2,3091.9,0.06086682]
[1732071083856,0.7553,3092.2,3090.8,0.18617166]
[1732071084163,0.7553,3092.2,3090.9,0.06086682]
[1732071084351,0.7553,3092.2,3090.9,0.50115801]
[1732071086896,0.7553,3092.2,3091.4,0.7944]
[1732071087028,0.7553,3092.2,3091.4,1.18817339]
[1732071087230,0.7553,3092.2,3091.5,0.06088598]
[1732071089456,0.7553,3092.2,3091.5,3.0]
[1732071089630,0.7553,3092.2,3091.6,0.06086563]
[1732071090236,0.7553,3092.2,3091.1,0.3225]
[1732071090450,0.7553,3092.2,3091.7,0.06086563]
[1732071090678,0.7553,3092.2,3091.1,0.3225]
[1732071090976,0.7553,3092.2,3091.0,0.3225]
[1732071091175,0.7553,3092.2,3091.2,0.06088658]
[1732071091464,0.7553,3092.2,3091.2,3.3225]
[1732071091665,0.7553,3092.2,3091.3,0.06088658]
[1732071091842,0.85005715,3092.1,3091.3,0.06088658]
[1732071092228,0.85005715,3092.1,3091.0,0.65070939]
[1732071092432,0.85005715,3092.1,3091.4,0.06089197]
[1732071092690,0.85005715,3092.1,3091.1,0.40427094]
[1732071092988,0.7692,3092.1,3091.1,0.40427094]
[1732071093222,0.7692,3092.1,3091.2,0.06089197]
[1732071093865,0.7692,3092.1,3091.2,0.40740826]
[1732071094029,0.7692,3092.1,3091.2,0.06089197]
[1732071094298,0.7692,3091.9,3091.2,0.06089197]
[1732071094434,0.7692,3091.9,3090.8,3.50867166]
[1732071094665,0.7692,3091.9,3091.3,0.06089197]
[1732071094870,0.7692,3091.9,3091.1,3.0]
[1732071095078,0.7692,3091.9,3091.4,0.06089197]
[1732071095406,0.7692,3091.7,3091.5,0.06089197]
[1732071095541,0.7692,3091.7,3090.3,0.3225]
[1732071095742,0.7692,3091.7,3091.6,0.06090574]
[1732071095934,0.7692,3091.7,3091.1,3.0]
[1732071096130,0.7692,3091.7,3091.6,0.06090574]
[1732071096401,0.7692,3091.7,3090.5,0.3225]
[1732071096532,0.7692,3091.7,3091.6,0.06090574]
[1732071096728,0.7692,3091.7,3090.5,0.3225]
[1732071096985,0.7692,3091.7,3091.6,0.06090574]
[1732071097188,0.7692,3091.7,3090.5,0.3225]
[1732071098090,0.7692,3091.7,3090.6,0.06091891]
[1732071099968,0.01,3092.2,3090.6,0.06091891]
[1732071099969,0.8142,3091.5,3090.6,0.3225]
[1732071100151,0.8142,3091.5,3090.7,0.06091831]
[1732071100731,0.8142,3091.5,3090.3,0.3225]
[1732071100896,0.08088141,3091.4,3090.8,0.06091831]
[1732071101195,0.08088141,3091.4,3090.3,0.3225]
[1732071101196,0.8142,3091.4,3090.3,0.3225]
[1732071101388,0.8142,3091.2,3090.9,0.06091831]
[1732071101565,0.8142,3091.2,3090.3,0.3225]
[1732071101766,0.8142,3091.2,3091.0,0.06091831]
[1732071101964,0.8142,3091.2,3090.3,0.3225]
[1732071102160,0.8142,3091.2,3091.1,0.06091831]
[1732071102391,0.8142,3091.2,3090.3,0.3225]
[1732071103050,0.8142,3091.2,3090.4,0.06096921]
[1732071105432,0.8142,3091.2,3090.5,1.49997265]
[1732071105611,0.8142,3091.2,3090.6,0.49547152]
[1732071105798,0.8142,3091.2,3090.5,0.3225]
[1732071105799,0.8142,3091.2,3090.8,3.0]
[1732071106468,0.8142,3091.2,3090.9,0.06096921]
[1732071107161,0.8142,3091.2,3090.7,3.0]
[1732071107906,0.8142,3091.2,3090.8,0.06098478]
[1732071108240,0.8142,3091.2,3090.3,0.3225]
[1732071108513,0.8142,3091.2,3090.7,3.0]
[1732071108668,0.8142,3091.2,3090.7,0.3]
[1732071108867,0.8142,3091.2,3090.8,0.06098299]
[1732071109128,0.8142,3091.2,3090.3,0.3225]
[1732071109266,0.8142,3091.2,3090.9,0.06098299]
[1732071109471,0.8142,3091.2,3090.3,0.3225]
[1732071109666,0.8142,3091.2,3090.4,0.06098299]
[1732071111802,0.8142,3091.2,3090.1,0.42164337]
[1732071112045,0.8142,3091.2,3090.5,0.06026693]
[1732071112246,0.8142,3091.2,3090.0,0.3226]
[1732071112414,0.8142,3091.0,3090.6,0.06026693]
[1732071112653,0.8142,3090.8,3089.6,0.09749728]
[1732071112866,0.01,3091.5,3089.4,0.39377339]
[1732071112867,0.8142,3090.6,3089.4,0.39377339]
[1732071113140,0.01,3091.4,3089.4,0.39377339]
[1732071113141,0.89510308,3090.5,3089.4,0.77235073]
[1732071113347,0.8142,3090.5,3089.5,0.06026693]
[1732071113554,0.8142,3090.5,3089.5,0.38286693]
[1732071114102,0.8142,3090.5,3089.5,4.54054032]
[1732071114498,0.8142,3090.5,3089.5,1.54054032]
[1732071114701,0.8142,3090.5,3089.8,3.3226]
[1732071114921,0.8142,3090.5,3089.9,0.33226]
[1732071115196,0.8142,3090.5,3089.9,0.06026693]
[1732071115425,0.08089899,3090.4,3089.9,0.06026693]
[1732071115631,0.8142,3091.1,3089.9,0.06026693]
[1732071115811,0.89510183,3091.0,3089.9,0.06026693]
[1732071116143,0.89510183,3091.0,3090.0,0.06026693]
[1732071116336,0.89510183,3091.0,3089.2,4.25459287]
[1732071116337,0.89510183,3091.0,3089.4,0.71559]
[1732071116548,0.89510183,3091.0,3090.1,0.06026693]
[1732071116710,0.89510183,3091.0,3089.2,0.86259287]
[1732071116912,0.89510183,3091.0,3089.3,0.06026693]
[1732071117124,0.89510183,3091.0,3089.8,3.0]
[1732071117332,0.89510183,3091.0,3089.2,0.86259287]
[1732071117592,0.89510183,3091.0,3089.9,0.06026693]
[1732071117709,0.89510183,3091.0,3089.3,0.16461573]
[1732071117918,0.89510183,3091.0,3089.4,0.06026693]
[1732071118655,0.89510183,3091.0,3089.8,3.0]
[1732071118948,0.89510183,3091.0,3089.9,0.06033139]
[1732071119112,0.89510183,3091.0,3089.8,3.0]
[1732071119446,0.89510183,3091.0,3089.9,0.06033139]
[1732071119843,0.89510183,3091.0,3089.3,0.16461573]
[1732071120351,0.89510183,3091.0,3089.4,0.06033139]
[1732071120841,0.89510183,3091.0,3089.8,3.0]
[1732071121048,0.89510183,3091.0,3089.4,0.06033139]
[1732071121259,0.89510183,3091.0,3089.9,0.06039943]
[1732071121409,0.89510183,3091.0,3089.8,3.0]
[1732071121614,0.89510183,3091.0,3090.0,0.06039943]
[1732071121833,0.89510183,3091.0,3089.4,0.3226]
[1732071122016,0.89510183,3091.0,3090.1,0.06039943]
[1732071122347,0.89510183,3091.0,3090.2,0.06039943]
[1732071122506,0.89510183,3091.0,3089.4,0.3226]
[1732071122907,0.89510183,3091.0,3089.8,3.3226]
[1732071123216,0.89510183,3091.0,3089.3,0.16461573]
[1732071123411,0.89510183,3091.0,3089.9,0.06039943]
[1732071123729,0.89510183,3091.0,3089.3,0.16461573]
[1732071123917,0.89510183,3091.0,3090.0,0.06039943]
[1732071124121,0.89510183,3091.0,3089.3,0.16461573]
[1732071124350,0.89510183,3091.0,3089.4,0.06039943]
[1732071124553,0.89510183,3091.0,3089.4,0.38299943]
[1732071125225,0.89510183,3091.0,3089.9,0.3226]
[1732071125560,0.89510183,3091.0,3090.0,0.33226]
[1732071125836,0.89510183,3091.0,3090.0,4.10903282]
[1732071125837,0.8142,3091.0,3090.0,4.10903282]
[1732071125981,0.8142,3091.0,3090.0,1.10903282]
[1732071126128,0.8142,3091.0,3090.0,0.77677282]
[1732071126334,0.8142,3091.0,3090.2,3.0]
[1732071126540,0.8142,3091.0,3090.0,0.71637339]
[1732071126721,0.8142,3091.0,3090.3,0.06039943]
[1732071126910,0.8142,3091.0,3090.0,0.71637339]
[1732071127127,0.8142,3091.0,3090.1,0.43203677]
[1732071127368,0.8142,3091.0,3090.3,3.0]
[1732071127670,0.8142,3091.0,3089.9,0.3226]
[1732071128178,0.8142,3090.8,3090.0,0.06039943]
[1732071128361,0.8142,3090.8,3089.7,0.3226]
[1732071128560,0.8142,3090.8,3090.1,0.06039943]
[1732071128739,0.8142,3090.8,3089.9,0.3226]
[1732071128942,0.8142,3090.8,3090.2,0.06039943]
[1732071129330,0.8142,3090.8,3089.9,0.3226]
[1732071129531,0.90889249,3090.7,3090.3,0.06039943]
[1732071129873,0.828,3090.7,3089.5,1.05899618]
[1732071130077,0.828,3090.7,3089.6,0.45482999]
[1732071130275,0.828,3090.7,3089.6,0.51522942]
[1732071132595,0.828,3090.7,3089.6,4.70790281]
[1732071132884,0.828,3090.7,3089.7,0.3226]
[1732071133402,0.828,3090.7,3089.8,0.06038749]
[1732071133841,0.828,3090.7,3089.8,0.45416088]
[1732071134271,0.828,3090.7,3089.9,0.3226]
[1732071134660,0.828,3090.7,3090.0,0.06037376]
[1732071136361,0.828,3090.7,3090.1,3.3226]
[1732071136585,0.828,3090.7,3090.2,0.66089738]
[1732071136754,0.828,3090.7,3090.2,0.38297376]
[1732071137469,0.828,3090.7,3090.2,0.06037376]
[1732071137637,0.828,3090.7,3090.2,0.38297376]
[1732071137834,0.828,3090.7,3090.2,0.3226]
[1732071138034,0.828,3090.7,3090.3,0.06034929]
[1732071141394,0.828,3091.6,3090.3,0.45412268]
[1732071141542,0.828,3091.6,3090.4,0.73947227]
[1732071141882,0.828,3091.6,3090.4,0.79981321]
[1732071142082,0.828,3091.6,3090.5,0.7989]
[1732071142471,0.828,3091.6,3090.6,0.38293855]
[1732071142988,0.828,3091.6,3090.6,0.06033855]
[1732071143193,0.90887011,3091.5,3090.6,0.06033855]
[1732071143494,0.90887011,3091.5,3090.5,3.0]
[1732071143683,0.828,3091.5,3090.7,0.0603296]
[1732071143990,0.08088265,3091.4,3090.0,0.42027995]
[1732071144201,0.828,3091.4,3090.8,0.06028603]
[1732071144491,0.828,3091.4,3090.0,3.3226]
[1732071144646,0.828,3091.4,3090.1,0.761118]
[1732071144850,0.828,3091.4,3090.1,0.82140403]
[1732071146699,0.828,3091.4,3090.1,1.21517742]
[1732071148289,0.826,3091.2,3090.1,1.21517742]
[1732071148584,0.826,3091.0,3090.5,3.0]
[1732071148815,0.826,3091.0,3089.8,3.0]
[1732071149092,0.826,3091.0,3090.6,0.06028603]
[1732071149308,0.826,3090.8,3089.7,0.09847922]
[1732071149610,0.02,3091.7,3089.7,0.09847922]
[1732071149611,0.826,3090.6,3089.8,0.06028603]
[1732071150278,0.826,3090.6,3089.5,0.3226]
[1732071150419,0.90689967,3090.5,3089.9,0.05830153]
[1732071150612,0.90689967,3090.5,3089.5,0.09682354]
[1732071150799,0.90689967,3090.5,3090.0,0.05830153]
[1732071151109,0.90689967,3090.5,3089.1,0.39377339]
[1732071151331,0.90689967,3090.5,3089.2,0.5332246]
[1732071151512,0.90689967,3090.5,3089.2,0.05753386]
[1732071153180,0.90689967,3090.5,3089.1,0.39377339]
[1732071153436,0.90689967,3090.5,3089.3,0.05753386]
[1732071153610,0.90689967,3090.5,3088.5,0.90817712]
[1732071153923,0.90689967,3090.5,3089.4,0.05753386]
[1732071154117,0.90689967,3090.5,3088.9,0.39377339]
[1732071154741,0.90689967,3090.5,3089.1,3.0]
[1732071154880,0.90689967,3090.5,3089.1,3.34513073]
[1732071155078,0.90689967,3090.5,3089.1,0.34513073]
[1732071155296,0.90689967,3090.5,3088.9,0.39377339]
[1732071155297,0.90689967,3090.5,3089.2,0.05753386]
[1732071155630,0.90689967,3090.5,3088.9,0.48996565]
[1732071155910,0.90689967,3090.5,3089.3,0.0576]
[1732071156075,0.90689967,3090.5,3089.1,3.0]
[1732071156279,0.90689967,3090.5,3089.2,0.3]
[1732071156588,0.90689967,3090.5,3089.2,0.0576]
[1732071156814,0.90689967,3090.5,3088.6,0.55]
[1732071157013,0.90689967,3090.5,3089.3,0.0576]
[1732071157229,0.90689967,3090.5,3088.8,0.55]
[1732071157386,0.90689967,3090.5,3089.4,0.0576]
[1732071157618,0.90689967,3090.5,3088.9,0.39377339]
[1732071157812,0.90689967,3090.5,3089.5,0.05760296]
[1732071158003,0.90689967,3090.5,3088.9,0.39377339]
[1732071158004,0.90689967,3090.5,3089.1,3.0]
[1732071158201,0.90689967,3090.5,3089.6,0.05760296]
[1732071158538,0.90689967,3090.5,3089.4,3.39377339]
[1732071158539,0.826,3090.5,3089.4,3.39377339]
[1732071158733,0.86391674,3090.4,3089.7,0.05760296]
[1732071159031,0.783,3090.4,3089.8,0.05760296]
[1732071159188,0.783,3090.2,3089.4,3.0]
[1732071159403,0.86390863,3090.1,3089.9,0.05760296]
[1732071159589,0.86390863,3090.1,3088.9,0.39377339]
[1732071159796,0.86390863,3090.1,3090.0,0.05760296]
[1732071160040,0.86390863,3090.1,3088.9,0.48955557]
[1732071160197,0.783,3090.1,3090.0,0.05766499]
[1732071160407,0.783,3090.1,3089.0,3.0]
[1732071160612,0.783,3090.1,3090.0,0.05766499]
[1732071160802,0.783,3090.1,3089.0,3.40395556]
[1732071160989,0.783,3090.1,3090.0,0.05766499]
[1732071161208,0.783,3090.1,3089.0,0.39377339]
[1732071161498,0.783,3090.1,3090.0,0.05765672]
[1732071161700,0.783,3090.1,3089.0,3.39377339]
[1732071161898,0.783,3090.1,3089.1,0.34895556]
[1732071162208,0.783,3090.1,3089.1,0.83895672]
[1732071162532,0.783,3090.1,3089.2,0.39377339]
[1732071163043,0.783,3090.1,3089.3,0.38025495]
[1732071163966,0.783,3090.1,3089.3,0.05765495]
[1732071164092,0.783,3090.1,3089.3,0.38025495]
[1732071165236,0.783,3090.1,3089.4,0.3226]
[1732071165434,0.783,3090.1,3089.4,0.38024431]
[1732071166114,0.783,3090.1,3089.5,0.71637339]
[1732071166504,0.783,3090.1,3089.6,0.05764136]
[1732071167233,0.8263,3091.0,3089.6,3.83894136]
[1732071167440,0.8263,3091.0,3089.8,0.55]
[1732071168230,0.8263,3090.8,3089.9,0.05763309]
[1732071169034,0.8263,3090.6,3089.9,0.05763309]
[1732071169244,0.8263,3090.6,3089.6,0.55]
[1732071169411,0.8263,3090.6,3090.0,0.05762482]
[1732071169612,0.8263,3090.6,3089.5,0.8726]
[1732071169924,0.8263,3090.6,3090.1,0.05762482]
[1732071170109,0.8263,3090.6,3089.5,0.8726]
[1732071170315,0.8263,3090.6,3090.2,0.05762482]
[1732071170517,0.8263,3090.6,3089.6,0.38726]
[1732071170863,0.8263,3090.6,3089.5,0.8726]
[1732071171138,0.8263,3090.6,3089.7,0.05758346]
[1732071171309,0.8263,3090.4,3089.7,3.05758346]
[1732071171507,0.8263,3090.4,3089.4,0.3226]
[1732071171720,0.8263,3090.4,3089.8,0.05759232]
[1732071171925,0.8263,3090.4,3089.4,0.3226]
[1732071172131,0.8263,3090.4,3089.9,0.05759232]
[1732071172382,0.8263,3090.4,3089.5,0.71637339]
[1732071172533,0.8263,3090.4,3090.0,0.05759468]
[1732071172749,0.8263,3090.4,3090.1,0.05759468]
[1732071172962,0.8263,3090.4,3089.5,0.71637339]
[1732071173260,0.8263,3090.4,3089.6,0.05759409]
[1732071173914,0.8263,3090.4,3089.7,3.0]
[1732071174114,0.8263,3090.4,3089.7,0.30575941]
[1732071174484,0.8263,3090.4,3089.8,0.05759409]
[1732071174747,0.8263,3090.4,3089.9,0.05759409]
[1732071174922,0.8263,3090.4,3089.5,0.8726]
[1732071175318,0.8263,3090.4,3089.6,0.05759409]
[1732071181317,0.8263,3090.4,3089.7,0.05759291]
[1732071181532,0.8263,3090.4,3089.3,0.88057873]
[1732071181533,0.8263,3090.4,3089.5,0.3226]
[1732071181771,0.8263,3090.4,3089.7,3.0]
[1732071181944,0.8263,3090.4,3089.7,0.33226]
[1732071182140,0.88470161,3090.3,3089.8,0.05761299]
[1732071182529,0.88470161,3090.3,3088.9,0.811]
[1732071182530,0.8038,3090.3,3088.9,0.811]
[1732071182739,0.8038,3090.3,3088.9,1.19077339]
[1732071183005,0.8038,3090.3,3089.0,0.05005403]
[1732071183468,0.8038,3090.3,3089.2,0.3226]
[1732071183623,0.8038,3090.1,3089.2,0.3226]
[1732071183830,0.88470895,3090.0,3089.3,0.37267156]
[1732071184369,0.8038,3090.0,3089.3,0.37267156]
[1732071184657,0.8038,3090.0,3089.3,0.05007156]
[1732071185122,0.8038,3089.8,3088.8,0.3226]
[1732071185242,0.8038,3089.6,3089.4,0.05006747]
[1732071185449,0.8038,3089.6,3088.8,0.3226]
[1732071185932,0.8038,3089.6,3088.9,0.05006747]
[1732071186533,0.8038,3089.6,3088.9,3.05006747]
[1732071186725,0.8038,3089.6,3088.9,3.39704929]
[1732071186931,0.8038,3089.6,3088.9,0.39704929]
[1732071187175,0.8038,3089.6,3088.9,3.05006747]
[1732071187581,0.8038,3089.6,3088.9,0.05006747]
[1732071187937,0.8038,3089.6,3088.9,3.05006747]
[1732071188154,0.8038,3089.6,3088.9,0.05006747]
[1732071190184,0.8038,3089.6,3088.9,3.05006747]
[1732071190749,0.8038,3089.6,3088.9,0.39704929]
[1732071190983,0.8038,3089.6,3088.9,0.05006747]
[1732071191774,0.8038,3089.6,3088.9,3.05006747]
[1732071192545,0.8038,3089.6,3088.9,0.05006747]
[1732071192754,0.8038,3089.6,3089.0,0.55]
[1732071192962,0.8314,3090.4,3089.0,1.33873084]
[1732071193176,0.91230475,3090.3,3089.2,0.55]
[1732071193687,0.91230475,3090.3,3089.3,0.37273235]
[1732071194045,0.8314,3090.3,3089.3,0.37273235]
[1732071194780,0.8314,3090.3,3089.4,1.3245]
[1732071195348,0.8314,3090.3,3089.5,0.05011832]
[1732071196147,0.8314,3090.3,3089.5,3.05011832]
[1732071196681,0.8314,3090.3,3089.5,0.05011832]
[1732071197647,0.8314,3090.3,3089.5,3.05011832]
[1732071197846,0.8314,3090.3,3089.6,0.38246183]
[1732071198083,0.8314,3090.3,3089.5,3.05011832]
[1732071198288,0.8314,3090.3,3089.7,0.05010839]
[1732071198445,0.8314,3090.3,3089.4,0.7745]
[1732071198646,0.8314,3090.3,3089.8,0.0501078]
[1732071198880,0.8314,3090.3,3089.5,0.55]
[1732071199186,0.8314,3090.3,3089.5,0.54358308]
[1732071199355,0.8314,3090.3,3089.2,0.55]
[1732071199552,0.8314,3090.3,3089.6,0.05010955]
[1732071199762,0.8314,3090.3,3089.2,0.55]
[1732071200065,0.8314,3090.3,3089.4,0.3226]
[1732071200268,0.8314,3090.3,3089.6,0.3226]
[1732071200847,0.8314,3090.3,3089.7,0.05009845]
[1732071201671,0.8314,3090.3,3089.3,0.7745]
[1732071201855,0.8314,3090.3,3089.8,0.04931027]
[1732071202185,0.8314,3090.3,3089.9,0.04931027]
[1732071202484,0.8314,3090.3,3089.3,0.7745]
[1732071202485,0.8314,3090.3,3089.3,1.0971]
[1732071202694,0.8314,3090.3,3090.0,0.04930968]
[1732071202986,0.8314,3090.3,3089.5,3.3226]
[1732071203162,0.8314,3090.3,3089.5,0.3226]
[1732071203360,0.8314,3090.3,3089.6,0.04930968]
[1732071203573,0.8314,3090.3,3089.6,0.40297165]
[1732071203778,0.8314,3090.3,3089.6,0.04930968]
[1732071206592,0.757,3091.5,3089.8,0.7512]
[1732071206754,0.757,3091.3,3089.9,0.0492606]
[1732071206955,0.757,3091.1,3089.9,0.0492606]
[1732071207271,0.83789568,3091.0,3089.9,0.0492606]
[1732071211396,0.757,3091.0,3089.9,0.0492606]
[1732071211770,0.08089124,3090.9,3089.9,0.0492606]
[1732071212660,0.757,3091.0,3089.9,0.0492606]
[1732071212998,0.757,3091.0,3090.0,0.38004606]
[1732071213174,0.757,3091.0,3090.1,0.04924833]
[1732071213509,0.757,3091.0,3089.9,0.55]
[1732071213690,0.757,3091.0,3090.3,0.7512]
[1732071214001,0.757,3091.0,3090.4,0.04923606]
[1732071215207,0.757,3091.0,3090.5,0.41230361]
[1732071215512,0.757,3092.1,3090.6,0.0492273]
[1732071215670,0.09088251,3092.2,3090.6,0.0492273]
[1732071215671,0.757,3091.9,3090.6,0.0492273]
[1732071215858,0.83787498,3091.8,3090.4,0.55]
[1732071216113,0.83787498,3091.8,3090.3,1.0738]
[1732071216114,0.83787498,3091.8,3090.7,0.04917589]
[1732071216261,0.83787498,3091.8,3090.5,0.16238]
[1732071216461,0.83787498,3091.8,3090.8,0.04917589]
[1732071216697,0.83787498,3091.8,3090.5,0.16238]
[1732071216886,0.83787498,3091.8,3090.9,0.04917589]
[1732071217136,0.83787498,3091.8,3090.5,0.16238]
[1732071217266,0.83787498,3091.8,3090.3,1.0738]
[1732071217267,0.83787498,3091.8,3091.0,0.04916538]
[1732071217466,0.83787498,3091.8,3090.3,0.7512]
[1732071217884,0.83787498,3091.8,3090.4,3.04916538]
[1732071218411,0.83787498,3091.8,3090.4,0.42920192]
[1732071218603,0.83787498,3091.8,3090.4,0.04916538]
[1732071221912,0.7829,3091.6,3090.4,0.04916538]
[1732071222084,0.08087593,3091.5,3090.4,0.04916538]
[1732071222430,0.7829,3091.4,3090.4,0.04916538]
[1732071223309,0.7829,3091.3,3090.4,0.04916538]
[1732071223482,0.7829,3091.1,3090.4,0.04916538]
[1732071223674,0.7829,3090.9,3089.7,0.831]
[1732071224104,0.7829,3090.9,3089.8,0.04752871]
[1732071224839,0.7829,3090.9,3090.0,3.0]
[1732071224992,0.08089141,3090.8,3089.8,0.04752871]
[1732071225208,0.7829,3090.8,3089.2,0.78873084]
[1732071225430,0.7829,3090.6,3089.3,0.24176179]
[1732071225726,0.7829,3090.4,3089.3,0.24176179]
[1732071226029,0.7829,3090.4,3089.3,0.62153518]
[1732071226453,0.7829,3090.4,3089.4,0.37977339]
[1732071226739,0.7829,3090.4,3089.4,0.42736869]
[1732071228232,0.7829,3090.4,3089.7,3.0]
[1732071228535,0.7829,3090.4,3089.8,0.3]
[1732071228720,0.7829,3090.4,3089.8,0.04759588]
[1732071229109,0.7829,3090.4,3089.7,3.0]
[1732071229457,0.7829,3090.4,3089.3,0.19423308]
[1732071229589,0.7829,3090.4,3089.8,0.04759822]
[1732071230503,0.7829,3090.4,3089.3,0.19423308]
[1732071230697,0.7829,3090.4,3089.9,0.04759822]
[1732071231036,0.7829,3090.4,3089.3,0.19423308]
[1732071231237,0.7829,3090.4,3090.0,0.04759822]
[1732071231454,0.7829,3090.4,3089.5,3.0]
[1732071231600,0.7829,3090.4,3090.1,0.04759822]
[1732071231930,0.7829,3090.4,3089.5,3.31942331]
[1732071232139,0.7829,3090.4,3090.2,0.04760231]
[1732071232431,0.7829,3090.4,3089.5,3.0]
[1732071232642,0.7829,3090.4,3090.3,0.04760231]
[1732071232813,0.7829,3090.4,3089.5,3.0]
[1732071233009,0.7829,3090.4,3089.3,0.19423308]
[1732071233203,0.7829,3090.4,3089.2,0.09777166]
[1732071233393,0.7829,3090.4,3089.3,0.04760289]
[1732071234297,0.01,3090.9,3089.3,0.04760289]
[1732071234298,0.7829,3090.2,3089.3,0.04760289]
[1732071234845,0.7829,3090.2,3089.0,0.3226]
[1732071235064,0.7829,3090.2,3089.4,0.04285612]
[1732071235417,0.7829,3090.2,3088.9,0.831]
[1732071235728,0.7829,3090.2,3089.0,0.04285612]
[1732071241411,0.7829,3090.2,3089.0,3.43885612]
[1732071241527,0.7829,3090.2,3089.2,0.831]
[1732071241722,0.7829,3090.2,3089.2,1.1536]
[1732071242104,0.7829,3090.2,3089.3,0.04285612]
[1732071242729,0.7829,3090.2,3089.4,0.37977339]
[1732071243233,0.7829,3090.2,3089.5,0.04285612]
[1732071243827,0.7829,3090.2,3089.5,0.36545612]
[1732071244336,0.7829,3090.2,3089.5,0.04285612]
[1732071244747,0.7829,3090.2,3089.1,0.78184561]
[1732071245038,0.7829,3090.2,3089.1,0.3226]
[1732071245235,0.7829,3090.2,3089.2,0.04287696]
[1732071246708,0.7829,3090.2,3089.4,0.3226]
[1732071247148,0.7829,3090.2,3089.5,0.0428787]
[1732071247802,0.7829,3090.2,3089.7,3.3226]
[1732071248004,0.7829,3090.2,3089.8,0.33226]
[1732071248204,0.7829,3090.2,3089.8,0.04287059]
[1732071248648,0.7829,3090.2,3089.7,0.3226]
[1732071248852,0.7829,3090.2,3089.9,0.04287059]
[1732071249142,0.7829,3090.2,3089.2,0.3226]
[1732071249306,0.7829,3090.2,3090.0,0.04287059]
[1732071249505,0.7829,3090.2,3089.3,0.33226]
[1732071249711,0.7829,3090.2,3090.1,0.04287059]
[1732071249913,0.7829,3090.2,3089.3,0.33226]
[1732071250113,0.7829,3090.2,3090.1,0.04287059]
[1732071250341,0.8214,3090.1,3088.4,0.89185163]
[1732071250617,0.7881,3089.9,3088.4,0.7932]
[1732071251160,0.7881,3089.9,3088.5,0.3226]
[1732071251748,0.55,3089.6,3088.3,0.3226]
[1732071251970,0.7881,3089.5,3088.3,0.3226]
[1732071252112,0.7881,3089.5,3088.3,0.70237339]
[1732071252312,0.8690343,3089.4,3088.3,0.3226]
[1732071253457,0.7881,3089.4,3088.3,0.3226]
[1732071253652,0.7881,3089.4,3088.3,0.70237339]
[1732071254610,0.7881,3089.4,3088.3,0.3226]
[1732071255759,0.7881,3089.4,3088.6,3.0]
[1732071255988,0.7881,3089.4,3088.7,0.3]
[1732071256188,0.7881,3089.4,3088.3,0.3226]
[1732071256682,0.7881,3089.4,3088.4,0.0411971]
[1732071256963,0.7881,3089.4,3088.6,3.0]
[1732071257208,0.08092639,3089.3,3088.6,3.0]
[1732071257360,3.25584,3090.4,3088.3,0.3226]
[1732071257361,0.8082,3089.2,3088.3,0.3226]
[1732071257555,0.8082,3089.2,3088.7,0.0411971]
[1732071257752,0.8082,3089.2,3088.3,0.70237339]
[1732071257963,0.8082,3089.2,3088.8,0.0411971]
[1732071258317,0.8082,3089.2,3088.6,3.0]
[1732071258567,0.8082,3089.2,3088.9,0.0411971]
[1732071258745,0.8082,3089.2,3088.3,0.70237339]
[1732071258946,0.8082,3089.2,3089.0,0.0411971]
[1732071259134,0.8082,3089.2,3088.6,3.0]
[1732071259362,0.8082,3089.2,3089.1,0.0411971]
[1732071260229,0.8082,3089.2,3088.6,3.0]
[1732071260550,0.8082,3089.2,3088.7,0.0411971]
[1732071262169,0.8082,3089.2,3088.6,3.0]
[1732071262401,0.8082,3089.2,3088.8,0.04123997]
[1732071262587,0.8082,3089.2,3088.6,3.0]
[1732071262756,0.8082,3089.2,3088.9,0.04129444]
[1732071262955,0.8082,3089.2,3088.2,0.3226]
[1732071263160,0.8082,3089.2,3089.0,0.04129444]
[1732071263407,0.8082,3089.2,3088.6,3.0]
[1732071263700,0.8082,3089.2,3088.6,3.3]